[Event "*** Titled Tuesday 3|2 Blitz (Early)"]
[Site "Chess.com"]
[Date "2017.01.03"]
[Round "2"]
[White "ABDELAZEEZ-M"]
[Black "MrReinberg"]
[Result "0-1"]
[WhiteElo "2025"]
[BlackElo "2107"]
[TimeControl "180+2"]
[EndTime "11:22:54 PST"]
[Termination "MrReinberg won by resignation"]

1. d4 {[%clk 0:03:00]} 1... d5 {[%clk 0:02:58.5]} 2. c4 {[%clk 0:02:59.9]} 2...
e6 {[%clk 0:02:56.2]} 3. Nc3 {[%clk 0:02:59.8]} 3... Nf6 {[%clk 0:02:47.1]} 4.
cxd5 {[%clk 0:02:59.8]} 4... Nxd5 {[%clk 0:02:46.4]} 5. e4 {[%clk 0:03:00.3]}
5... Nxc3 {[%clk 0:02:47]} 6. bxc3 {[%clk 0:03:02.2]} 6... c5 {[%clk 0:02:47]}
7. Nf3 {[%clk 0:03:01.1]} 7... cxd4 {[%clk 0:02:47.1]} 8. cxd4 {[%clk
0:03:01.2]} 8... Bb4+ {[%clk 0:02:47.9]} 9. Bd2 {[%clk 0:03:01.8]} 9... Bxd2+
{[%clk 0:02:49.2]} 10. Qxd2 {[%clk 0:03:02.7]} 10... O-O {[%clk 0:02:51.1]} 11.
Bd3 {[%clk 0:03:02]} 11... b6 {[%clk 0:02:52]} 12. O-O {[%clk 0:03:02.3]} 12...
Ba6 {[%clk 0:02:48.9]} 13. Bxa6 {[%clk 0:03:03]} 13... Nxa6 {[%clk 0:02:50.8]}
14. Rfc1 {[%clk 0:03:02.5]} 14... Rc8 {[%clk 0:02:49]} 15. Qd3 {[%clk
0:02:43.2]} 15... Nb8 {[%clk 0:02:48.3]} 16. h4 {[%clk 0:02:19.9]} 16... Nd7
{[%clk 0:02:28.6]} 17. e5 {[%clk 0:02:18]} 17... f6 {[%clk 0:01:54.3]} 18. Rd1
{[%clk 0:01:44.4]} 18... fxe5 {[%clk 0:01:40.6]} 19. Ng5 {[%clk 0:01:41]} 19...
Nf6 {[%clk 0:01:35.8]} 20. Nxe6 {[%clk 0:01:39.7]} 20... Qd5 {[%clk 0:01:27.7]}
21. Nxf8 {[%clk 0:01:39]} 21... e4 {[%clk 0:01:26.6]} 22. Qb3 {[%clk 0:01:32.6]}
22... Kxf8 {[%clk 0:01:09.7]} 23. Qa3+ {[%clk 0:01:32]} 23... Kg8 {[%clk
0:01:06.2]} 24. Rac1 {[%clk 0:01:27.9]} 24... Re8 {[%clk 0:00:56.9]} 25. Qxa7
{[%clk 0:01:21.3]} 25... e3 {[%clk 0:00:57.6]} 26. fxe3 {[%clk 0:01:13.4]} 26...
Qe4 {[%clk 0:00:54.1]} 27. Rc7 {[%clk 0:00:48.3]} 27... Qxe3+ {[%clk 0:00:42.4]}
28. Kh1 {[%clk 0:00:48.9]} 28... Qg3 {[%clk 0:00:42.5]} 29. Re7 {[%clk
0:00:35.5]} 29... Rf8 {[%clk 0:00:38.4]} 30. Qc7 {[%clk 0:00:31.9]} 30... Qxh4+
{[%clk 0:00:36.8]} 31. Qh2 {[%clk 0:00:32.8]} 31... Qg4 {[%clk 0:00:29.2]} 32.
Rf1 {[%clk 0:00:33.1]} 32... Qxd4 {[%clk 0:00:27]} 33. Qg3 {[%clk 0:00:30.7]}
33... Ne4 {[%clk 0:00:17]} 34. Rxf8+ {[%clk 0:00:10.9]} 34... Kxf8 {[%clk
0:00:18.9]} 35. Qe5 {[%clk 0:00:12.1]} 35... Nf2+ {[%clk 0:00:16.6]} 36. Kh2
{[%clk 0:00:12]} 36... Ng4+ {[%clk 0:00:16.4]} 37. Kh3 {[%clk 0:00:06.7]} 37...
Nxe5 {[%clk 0:00:15.8]} 38. Rxe5 {[%clk 0:00:08.6]} 0-1

[Event "*** Titled Tuesday 3|2 Blitz (Early)"]
[Site "Chess.com"]
[Date "2017.01.03"]
[Round "2"]
[White "HovmoellerHest"]
[Black "Dr-Bassem"]
[Result "0-1"]
[WhiteElo "2225"]
[BlackElo "2639"]
[TimeControl "180+2"]
[EndTime "11:23:20 PST"]
[Termination "Dr-Bassem won by checkmate"]

1. d4 {[%clk 0:03:01.9]} 1... f5 {[%clk 0:02:54.9]} 2. c4 {[%clk 0:02:51.7]}
2... e6 {[%clk 0:02:55.2]} 3. Nc3 {[%clk 0:02:52.4]} 3... Nf6 {[%clk 0:02:56.8]}
4. g3 {[%clk 0:02:51.1]} 4... Be7 {[%clk 0:02:58.2]} 5. Bg2 {[%clk 0:02:52.4]}
5... O-O {[%clk 0:03:00.1]} 6. Nf3 {[%clk 0:02:50.6]} 6... d6 {[%clk 0:03:01.2]}
7. O-O {[%clk 0:02:51.4]} 7... Qe8 {[%clk 0:03:03.1]} 8. Bg5 {[%clk 0:02:44.7]}
8... Ne4 {[%clk 0:03:02.7]} 9. Bxe7 {[%clk 0:02:44.4]} 9... Nxc3 {[%clk
0:03:01.4]} 10. bxc3 {[%clk 0:02:45]} 10... Qxe7 {[%clk 0:03:02.3]} 11. Nd2
{[%clk 0:02:39.1]} 11... e5 {[%clk 0:03:02.3]} 12. e3 {[%clk 0:02:34.5]} 12...
Nc6 {[%clk 0:03:00.5]} 13. Rb1 {[%clk 0:02:30.2]} 13... e4 {[%clk 0:02:44.7]}
14. Nb3 {[%clk 0:02:12.9]} 14... Nd8 {[%clk 0:02:22.5]} 15. c5 {[%clk
0:02:10.9]} 15... Be6 {[%clk 0:02:19]} 16. cxd6 {[%clk 0:02:05.3]} 16... cxd6
{[%clk 0:02:20.9]} 17. Re1 {[%clk 0:01:38.2]} 17... Rc8 {[%clk 0:02:20.3]} 18.
d5 {[%clk 0:01:31.5]} 18... Bd7 {[%clk 0:02:17.2]} 19. Qd4 {[%clk 0:01:27.8]}
19... b6 {[%clk 0:02:17.4]} 20. Bf1 {[%clk 0:01:25.5]} 20... Nf7 {[%clk
0:02:16.3]} 21. Be2 {[%clk 0:01:22]} 21... Ne5 {[%clk 0:02:16.5]} 22. Nd2 {[%clk
0:01:11.2]} 22... Rc5 {[%clk 0:02:13.7]} 23. Rec1 {[%clk 0:01:09.1]} 23... Rfc8
{[%clk 0:02:10.5]} 24. Kg2 {[%clk 0:01:02.2]} 24... Qf7 {[%clk 0:02:00.6]} 25.
c4 {[%clk 0:00:58.9]} 25... Ra5 {[%clk 0:01:24.9]} 26. Qb2 {[%clk 0:00:56.3]}
26... Qg6 {[%clk 0:01:07.8]} 27. Rc3 {[%clk 0:00:48]} 27... Rac5 {[%clk
0:01:02.6]} 28. Rbc1 {[%clk 0:00:47.3]} 28... Qh6 {[%clk 0:00:57.3]} 29. Nb3
{[%clk 0:00:46.6]} 29... R5c7 {[%clk 0:00:57.7]} 30. Nd4 {[%clk 0:00:47.2]}
30... g5 {[%clk 0:00:53.7]} 31. Qa3 {[%clk 0:00:35.1]} 31... g4 {[%clk
0:00:52.2]} 32. Ne6 {[%clk 0:00:29.9]} 32... Bxe6 {[%clk 0:00:25.5]} 33. Qxd6
{[%clk 0:00:30.1]} 33... Qh3+ {[%clk 0:00:23.7]} 34. Kh1 {[%clk 0:00:28.5]}
34... Nf3 {[%clk 0:00:20.9]} 35. Qxe6+ {[%clk 0:00:27.1]} 35... Kg7 {[%clk
0:00:19.6]} 36. Bxf3 {[%clk 0:00:25.9]} 36... gxf3 {[%clk 0:00:21.5]} 37. Qe5+
{[%clk 0:00:23.6]} 37... Kg6 {[%clk 0:00:22.2]} 38. Qe6+ {[%clk 0:00:14.2]}
38... Kg5 {[%clk 0:00:22.7]} 39. Rg1 {[%clk 0:00:11]} 39... Rf8 {[%clk
0:00:24.1]} 40. d6 {[%clk 0:00:11.4]} 40... Rg7 {[%clk 0:00:18.9]} 41. Rcc1
{[%clk 0:00:10.9]} 41... Rg6 {[%clk 0:00:19.9]} 42. Qe7+ {[%clk 0:00:12.2]}
42... Rff6 {[%clk 0:00:21.1]} 43. Qe5 {[%clk 0:00:10.3]} 43... Qxh2+ {[%clk
0:00:19.1]} 44. Kxh2 {[%clk 0:00:09.4]} 44... Rh6# {[%clk 0:00:21]} 0-1

[Event "*** Titled Tuesday 3|2 Blitz (Early)"]
[Site "Chess.com"]
[Date "2017.01.03"]
[Round "2"]
[White "Zlatan56"]
[Black "andretta"]
[Result "1-0"]
[WhiteElo "2685"]
[BlackElo "2448"]
[TimeControl "180+2"]
[EndTime "11:23:27 PST"]
[Termination "Zlatan56 won by resignation"]

1. Nf3 {[%clk 0:03:02]} 1... d5 {[%clk 0:02:59.7]} 2. g3 {[%clk 0:03:02.5]} 2...
Nf6 {[%clk 0:02:55]} 3. Bg2 {[%clk 0:03:03.8]} 3... e6 {[%clk 0:02:56.2]} 4. O-O
{[%clk 0:03:04.4]} 4... Be7 {[%clk 0:02:46.7]} 5. d3 {[%clk 0:03:05.8]} 5... O-O
{[%clk 0:02:41.3]} 6. Nbd2 {[%clk 0:03:06.1]} 6... c5 {[%clk 0:02:42.3]} 7. e4
{[%clk 0:03:06.8]} 7... Nc6 {[%clk 0:02:40.3]} 8. Re1 {[%clk 0:03:06.8]} 8... b5
{[%clk 0:02:34.5]} 9. e5 {[%clk 0:03:07.4]} 9... Nd7 {[%clk 0:02:33.9]} 10. Nf1
{[%clk 0:03:08.9]} 10... Bb7 {[%clk 0:02:29]} 11. h4 {[%clk 0:03:09]} 11... b4
{[%clk 0:02:25.5]} 12. N1h2 {[%clk 0:03:08.2]} 12... a5 {[%clk 0:02:22.7]} 13.
h5 {[%clk 0:03:09.1]} 13... h6 {[%clk 0:02:19.5]} 14. Ng4 {[%clk 0:03:08.6]}
14... Qc7 {[%clk 0:01:58.9]} 15. Bf4 {[%clk 0:03:06.7]} 15... a4 {[%clk
0:01:53.9]} 16. a3 {[%clk 0:03:06.5]} 16... Rfc8 {[%clk 0:01:50.6]} 17. Qd2
{[%clk 0:02:53]} 17... bxa3 {[%clk 0:01:15]} 18. bxa3 {[%clk 0:02:51.3]} 18...
Qa5 {[%clk 0:01:11]} 19. c3 {[%clk 0:02:28]} 19... Bf8 {[%clk 0:00:55.3]} 20.
Bxh6 {[%clk 0:02:23.8]} 20... gxh6 {[%clk 0:00:49.4]} 21. Nxh6+ {[%clk
0:02:23.7]} 21... Bxh6 {[%clk 0:00:44.7]} 22. Qxh6 {[%clk 0:02:25.6]} 22... Qxc3
{[%clk 0:00:45.8]} 23. Ng5 {[%clk 0:02:02.9]} 23... Ncxe5 {[%clk 0:00:45.3]} 24.
f4 {[%clk 0:01:56.6]} 24... Nf8 {[%clk 0:00:27.7]} 25. fxe5 {[%clk 0:01:49.5]}
25... Rc7 {[%clk 0:00:24.2]} 26. Qf6 {[%clk 0:01:44.3]} 26... Qd4+ {[%clk
0:00:18.8]} 27. Kh2 {[%clk 0:01:43.1]} 27... Nh7 {[%clk 0:00:16.3]} 28. Qh6
{[%clk 0:01:27.8]} 28... Nxg5 {[%clk 0:00:12.4]} 29. Qxg5+ {[%clk 0:01:27.9]}
29... Kh7 {[%clk 0:00:08.9]} 30. Qf4 {[%clk 0:00:48.7]} 30... Qxf4 {[%clk
0:00:05.2]} 31. gxf4 {[%clk 0:00:50.6]} 31... Rg8 {[%clk 0:00:04.9]} 32. Rab1
{[%clk 0:00:46.7]} 32... Ba6 {[%clk 0:00:06]} 33. Re3 {[%clk 0:00:44.4]} 33...
c4 {[%clk 0:00:07.3]} 34. d4 {[%clk 0:00:40.8]} 34... c3 {[%clk 0:00:06.9]} 35.
Rc1 {[%clk 0:00:36.5]} 35... Rgc8 {[%clk 0:00:07.2]} 36. Rc2 {[%clk 0:00:29.8]}
36... Rb7 {[%clk 0:00:06.2]} 37. Rexc3 {[%clk 0:00:24.7]} 37... Rxc3 {[%clk
0:00:04.7]} 38. Rxc3 {[%clk 0:00:26.6]} 38... Bc4 {[%clk 0:00:06]} 39. Rg3
{[%clk 0:00:16.5]} 39... Rb3 {[%clk 0:00:06.8]} 40. Bh3 {[%clk 0:00:17]} 40...
Rxg3 {[%clk 0:00:05.7]} 41. Kxg3 {[%clk 0:00:17.3]} 41... Kh6 {[%clk 0:00:07.1]}
42. Bg4 {[%clk 0:00:18]} 42... Bd3 {[%clk 0:00:08.1]} 43. Kh4 {[%clk 0:00:18]}
43... Be4 {[%clk 0:00:08]} 44. Bd1 {[%clk 0:00:18.6]} 44... Bf5 {[%clk 0:00:08]}
45. Bxa4 {[%clk 0:00:19.3]} 45... Bd3 {[%clk 0:00:06.9]} 46. Be8 {[%clk
0:00:19.8]} 46... Kg7 {[%clk 0:00:06.5]} 47. a4 {[%clk 0:00:19.1]} 47... Ba6
{[%clk 0:00:05]} 48. Bb5 {[%clk 0:00:19.1]} 48... Bb7 {[%clk 0:00:02.3]} 1-0

[Event "*** Titled Tuesday 3|2 Blitz (Early)"]
[Site "Chess.com"]
[Date "2017.01.03"]
[Round "2"]
[White "Tesla37"]
[Black "Mischuk_D"]
[Result "0-1"]
[WhiteElo "2596"]
[BlackElo "2453"]
[TimeControl "180+2"]
[EndTime "11:23:43 PST"]
[Termination "Mischuk_D won by resignation"]

1. e4 {[%clk 0:03:02]} 1... c5 {[%clk 0:03:00.4]} 2. Nf3 {[%clk 0:03:02.5]} 2...
d6 {[%clk 0:03:01.4]} 3. Nc3 {[%clk 0:03:03.4]} 3... Nc6 {[%clk 0:03:01.6]} 4.
Bb5 {[%clk 0:03:03.1]} 4... Bd7 {[%clk 0:03:02.2]} 5. Bxc6 {[%clk 0:03:04]} 5...
Bxc6 {[%clk 0:03:03.2]} 6. d4 {[%clk 0:03:05.6]} 6... cxd4 {[%clk 0:03:04.3]} 7.
Qxd4 {[%clk 0:03:06.9]} 7... Nf6 {[%clk 0:03:04.5]} 8. Bg5 {[%clk 0:03:07.5]}
8... e6 {[%clk 0:03:05]} 9. Qd3 {[%clk 0:03:08.6]} 9... Be7 {[%clk 0:03:06]} 10.
O-O-O {[%clk 0:03:09.2]} 10... Qa5 {[%clk 0:03:07]} 11. h4 {[%clk 0:03:09.6]}
11... a6 {[%clk 0:03:06.7]} 12. Nd4 {[%clk 0:03:08]} 12... Rc8 {[%clk
0:03:05.6]} 13. f4 {[%clk 0:03:02.3]} 13... h6 {[%clk 0:03:04.5]} 14. Bxf6
{[%clk 0:03:02.3]} 14... Bxf6 {[%clk 0:02:52.7]} 15. e5 {[%clk 0:03:00.5]} 15...
dxe5 {[%clk 0:02:21.4]} 16. Nxc6 {[%clk 0:02:57.4]} 16... Rxc6 {[%clk
0:02:22.5]} 17. Qd7+ {[%clk 0:02:55.7]} 17... Kf8 {[%clk 0:02:23.6]} 18. Ne4
{[%clk 0:01:49.4]} 18... Qc7 {[%clk 0:02:12.7]} 19. fxe5 {[%clk 0:01:36.4]}
19... Qxe5 {[%clk 0:01:53.3]} 20. Nxf6 {[%clk 0:01:32.7]} 20... gxf6 {[%clk
0:01:54.3]} 21. Qxb7 {[%clk 0:01:32.8]} 21... Qc5 {[%clk 0:01:47.1]} 22. Rd2
{[%clk 0:01:27.4]} 22... Kg7 {[%clk 0:01:45.9]} 23. Qb3 {[%clk 0:01:26.7]} 23...
Qe5 {[%clk 0:01:35.7]} 24. Rhd1 {[%clk 0:01:23.4]} 24... Rhc8 {[%clk 0:01:35.9]}
25. Qd3 {[%clk 0:01:11.6]} 25... a5 {[%clk 0:01:31.6]} 26. Re2 {[%clk
0:01:08.4]} 26... Qf4+ {[%clk 0:01:30.4]} 27. Kb1 {[%clk 0:01:09.3]} 27... Qxh4
{[%clk 0:01:30.7]} 28. Re4 {[%clk 0:01:09.4]} 28... Qg5 {[%clk 0:01:28.3]} 29.
Re3 {[%clk 0:01:09.8]} 29... Rxc2 {[%clk 0:01:17.4]} 30. a3 {[%clk 0:01:10.4]}
30... Qc5 {[%clk 0:01:12.8]} 31. Rg3+ {[%clk 0:01:10.7]} 31... Kf8 {[%clk
0:01:13.8]} 32. Qh7 {[%clk 0:01:04.4]} 32... Rc1+ {[%clk 0:01:13.7]} 33. Rxc1
{[%clk 0:01:05.5]} 33... Qxc1+ {[%clk 0:01:14.6]} 34. Ka2 {[%clk 0:01:07.1]}
34... Qc4+ {[%clk 0:01:14.8]} 35. Ka1 {[%clk 0:01:08.2]} 35... Ke7 {[%clk
0:01:13.3]} 36. Rg7 {[%clk 0:01:06.8]} 36... e5 {[%clk 0:01:13]} 37. Rg3 {[%clk
0:01:04.6]} 37... Qf1+ {[%clk 0:01:11.5]} 38. Ka2 {[%clk 0:01:04.8]} 38... Rc1
{[%clk 0:01:12.2]} 39. Qe4 {[%clk 0:00:59.2]} 39... Qc4+ {[%clk 0:01:12]} 40.
Qxc4 {[%clk 0:00:59.7]} 40... Rxc4 {[%clk 0:01:13.9]} 41. Kb3 {[%clk 0:00:58.5]}
41... Rd4 {[%clk 0:01:13.4]} 42. Rh3 {[%clk 0:00:59.7]} 42... Rg4 {[%clk
0:01:13.5]} 43. g3 {[%clk 0:00:53.2]} 43... f5 {[%clk 0:01:12.8]} 44. Kc3 {[%clk
0:00:53.1]} 44... f6 {[%clk 0:01:07.6]} 45. b4 {[%clk 0:00:53.6]} 45... axb4+
{[%clk 0:01:08.5]} 46. axb4 {[%clk 0:00:54.7]} 46... f4 {[%clk 0:01:08.6]} 47.
gxf4 {[%clk 0:00:54.9]} 47... Rxf4 {[%clk 0:01:10.5]} 48. Rxh6 {[%clk 0:00:55]}
48... Kd6 {[%clk 0:01:11]} 49. Rh8 {[%clk 0:00:55.7]} 49... f5 {[%clk
0:01:10.3]} 50. Rd8+ {[%clk 0:00:56.5]} 50... Kc6 {[%clk 0:01:11.1]} 51. Rc8+
{[%clk 0:00:55.9]} 51... Kb7 {[%clk 0:01:11.8]} 52. Rc5 {[%clk 0:00:56]} 52...
Re4 {[%clk 0:01:11.9]} 53. Kd3 {[%clk 0:00:52.4]} 53... Kb6 {[%clk 0:01:12]} 54.
Rd5 {[%clk 0:00:52.7]} 54... Kc6 {[%clk 0:01:09.3]} 55. Rc5+ {[%clk 0:00:53.2]}
55... Kd6 {[%clk 0:01:10.2]} 56. Rc1 {[%clk 0:00:54.1]} 56... Rxb4 {[%clk
0:01:10.3]} 57. Ke3 {[%clk 0:00:55.1]} 57... Rb3+ {[%clk 0:01:10.4]} 58. Ke2
{[%clk 0:00:56.4]} 58... f4 {[%clk 0:01:11.3]} 59. Rc4 {[%clk 0:00:57]} 59...
Kd5 {[%clk 0:01:11.2]} 60. Rc8 {[%clk 0:00:57.8]} 60... Kd4 {[%clk 0:01:09]} 61.
Ra8 {[%clk 0:00:58]} 61... e4 {[%clk 0:01:07.8]} 62. Ra4+ {[%clk 0:00:58.9]}
62... Kd5 {[%clk 0:01:08.6]} 63. Ra5+ {[%clk 0:00:59.8]} 63... Kc4 {[%clk
0:01:09.1]} 64. Ra4+ {[%clk 0:01:00.5]} 64... Rb4 {[%clk 0:01:09.6]} 65. Ra2
{[%clk 0:01:01.6]} 65... Kd4 {[%clk 0:01:08.4]} 66. Rd2+ {[%clk 0:01:02.4]}
66... Ke5 {[%clk 0:01:08.9]} 67. Ra2 {[%clk 0:01:02.2]} 67... Kf5 {[%clk
0:01:09.3]} 68. Ra8 {[%clk 0:01:02.7]} 68... Rb2+ {[%clk 0:01:08.7]} 69. Ke1
{[%clk 0:01:03.9]} 69... Kg4 {[%clk 0:01:09.4]} 70. Ra3 {[%clk 0:01:03.9]} 70...
e3 {[%clk 0:01:09.8]} 71. Kf1 {[%clk 0:01:04.3]} 71... Kf3 {[%clk 0:01:10.5]}
72. Ra1 {[%clk 0:01:05.9]} 72... Rf2+ {[%clk 0:01:10.2]} 73. Kg1 {[%clk
0:01:06]} 73... Kg3 {[%clk 0:01:09.5]} 74. Ra8 {[%clk 0:01:04.8]} 74... Rb2
{[%clk 0:01:08.6]} 75. Ra1 {[%clk 0:01:05.3]} 75... f3 {[%clk 0:01:09.1]} 76.
Rc1 {[%clk 0:01:05.7]} 76... e2 {[%clk 0:01:07.3]} 0-1

[Event "*** Titled Tuesday 3|2 Blitz (Early)"]
[Site "Chess.com"]
[Date "2017.01.03"]
[Round "2"]
[White "OparinGrigoriy"]
[Black "Malev212"]
[Result "1-0"]
[WhiteElo "2573"]
[BlackElo "2379"]
[TimeControl "180+2"]
[EndTime "11:23:47 PST"]
[Termination "OparinGrigoriy won on time"]

1. Nf3 {[%clk 0:02:58.5]} 1... d5 {[%clk 0:02:55.6]} 2. g3 {[%clk 0:02:59.5]}
2... Nf6 {[%clk 0:02:54.1]} 3. Bg2 {[%clk 0:03:01]} 3... b5 {[%clk 0:02:54.9]}
4. d4 {[%clk 0:02:58.6]} 4... e6 {[%clk 0:02:54.5]} 5. O-O {[%clk 0:02:59.6]}
5... Nbd7 {[%clk 0:02:50.3]} 6. b3 {[%clk 0:03:00.5]} 6... Bb7 {[%clk
0:02:49.2]} 7. c4 {[%clk 0:02:59.3]} 7... bxc4 {[%clk 0:02:46.5]} 8. bxc4 {[%clk
0:03:01.2]} 8... dxc4 {[%clk 0:02:46.7]} 9. Na3 {[%clk 0:03:02.9]} 9... Nb6
{[%clk 0:02:35.1]} 10. Nxc4 {[%clk 0:02:59.1]} 10... Nxc4 {[%clk 0:02:35.3]} 11.
Qa4+ {[%clk 0:03:00]} 11... Nd7 {[%clk 0:02:24.4]} 12. Qxc4 {[%clk 0:03:01.1]}
12... Bd6 {[%clk 0:02:21.4]} 13. Bg5 {[%clk 0:02:57.3]} 13... Qc8 {[%clk
0:02:19.6]} 14. Rfe1 {[%clk 0:02:41.4]} 14... O-O {[%clk 0:02:13.7]} 15. e4
{[%clk 0:02:42.6]} 15... e5 {[%clk 0:02:10.2]} 16. Bh3 {[%clk 0:02:40.7]} 16...
Qe8 {[%clk 0:01:56.2]} 17. d5 {[%clk 0:02:34.2]} 17... Nb6 {[%clk 0:01:45]} 18.
Qb3 {[%clk 0:02:35.1]} 18... a5 {[%clk 0:01:38.1]} 19. Be3 {[%clk 0:02:32]}
19... a4 {[%clk 0:01:37.5]} 20. Qc3 {[%clk 0:02:33]} 20... Qe7 {[%clk
0:01:35.9]} 21. Rab1 {[%clk 0:02:33.5]} 21... Bc8 {[%clk 0:01:27.9]} 22. Bxc8
{[%clk 0:02:33.3]} 22... Rfxc8 {[%clk 0:01:28.7]} 23. Rec1 {[%clk 0:02:33.5]}
23... Nd7 {[%clk 0:01:24.8]} 24. Qc6 {[%clk 0:02:32.5]} 24... h6 {[%clk
0:01:18.1]} 25. Kg2 {[%clk 0:02:33.5]} 25... Nf6 {[%clk 0:01:17.7]} 26. Rc4
{[%clk 0:02:33.3]} 26... a3 {[%clk 0:01:16.7]} 27. h3 {[%clk 0:02:33]} 27...
Rab8 {[%clk 0:01:13.3]} 28. Rxb8 {[%clk 0:02:33.1]} 28... Rxb8 {[%clk
0:01:13.6]} 29. Nh4 {[%clk 0:02:34.8]} 29... Qd7 {[%clk 0:01:10]} 30. Nf5 {[%clk
0:02:29]} 30... Qxc6 {[%clk 0:01:10.1]} 31. dxc6 {[%clk 0:02:28.5]} 31... Bf8
{[%clk 0:01:07.8]} 32. Bc5 {[%clk 0:02:24.1]} 32... g6 {[%clk 0:01:01.4]} 33.
Bxf8 {[%clk 0:02:17.3]} 33... Kxf8 {[%clk 0:00:54.5]} 34. Nxh6 {[%clk
0:02:08.1]} 34... Rb2 {[%clk 0:00:54.5]} 35. Ng4 {[%clk 0:02:09.7]} 35... Nxg4
{[%clk 0:00:52.1]} 36. hxg4 {[%clk 0:02:11.6]} 36... Rxa2 {[%clk 0:00:45.6]} 37.
Rc5 {[%clk 0:02:13.1]} 37... f6 {[%clk 0:00:37.3]} 38. Rd5 {[%clk 0:02:13.7]}
38... Rc2 {[%clk 0:00:36.9]} 39. Rd8+ {[%clk 0:02:14.6]} 39... Ke7 {[%clk
0:00:37.1]} 40. Rd7+ {[%clk 0:02:16]} 40... Ke6 {[%clk 0:00:37.4]} 41. Rxc7
{[%clk 0:02:17.7]} 41... Kd6 {[%clk 0:00:35.4]} 42. Ra7 {[%clk 0:02:19.2]} 42...
a2 {[%clk 0:00:35]} 43. c7 {[%clk 0:02:20.4]} 43... Kd7 {[%clk 0:00:35.3]} 44.
g5 {[%clk 0:02:18.1]} 44... fxg5 {[%clk 0:00:34.4]} 45. Kf3 {[%clk 0:02:19.7]}
45... Kc8 {[%clk 0:00:28.5]} 46. Kg4 {[%clk 0:02:20.8]} 46... Rxf2 {[%clk
0:00:29.1]} 47. Kxg5 {[%clk 0:02:22.2]} 47... Rg2 {[%clk 0:00:28.2]} 48. g4
{[%clk 0:02:23.4]} 48... Kd7 {[%clk 0:00:29.2]} 49. Kh4 {[%clk 0:02:19.4]} 49...
Kc8 {[%clk 0:00:28.5]} 50. Kg5 {[%clk 0:02:19.1]} 50... Kd7 {[%clk 0:00:28.5]}
51. Kxg6 {[%clk 0:02:19.9]} 51... Rxg4+ {[%clk 0:00:28.2]} 52. Kf5 {[%clk
0:02:21.5]} 52... Rg2 {[%clk 0:00:24.4]} 53. Kxe5 {[%clk 0:02:22.8]} 53... Rc2
{[%clk 0:00:23.8]} 54. Kd4 {[%clk 0:02:22.9]} 54... Rxc7 {[%clk 0:00:24.1]} 55.
Rxa2 {[%clk 0:02:23.5]} 55... Rc6 {[%clk 0:00:24]} 56. Rh2 {[%clk 0:02:22.9]}
56... Ra6 {[%clk 0:00:23]} 57. Rh7+ {[%clk 0:02:23.2]} 57... Ke8 {[%clk
0:00:24.3]} 58. Ke5 {[%clk 0:02:24.7]} 58... Rb6 {[%clk 0:00:23.9]} 59. Kf5
{[%clk 0:02:25.9]} 59... Ra6 {[%clk 0:00:23.8]} 60. e5 {[%clk 0:02:27.5]} 60...
Rb6 {[%clk 0:00:24.8]} 61. Rc7 {[%clk 0:02:28.1]} 61... Ra6 {[%clk 0:00:25.3]}
62. Rc8+ {[%clk 0:02:28.7]} 62... Ke7 {[%clk 0:00:25]} 63. Rh8 {[%clk
0:02:29.8]} 63... Rb6 {[%clk 0:00:23.7]} 64. Rh7+ {[%clk 0:02:26.2]} 64... Ke8
{[%clk 0:00:24.2]} 65. Rg7 {[%clk 0:02:27.8]} 65... Ra6 {[%clk 0:00:24.7]} 66.
Rg6 {[%clk 0:02:29.1]} 66... Ra1 {[%clk 0:00:21.5]} 67. Kf6 {[%clk 0:02:29]}
67... Kf8 {[%clk 0:00:17.6]} 68. Rh6 {[%clk 0:02:27.5]} 68... Rf1+ {[%clk
0:00:17.1]} 69. Ke6 {[%clk 0:02:28.2]} 69... Ra1 {[%clk 0:00:17.5]} 70. Rh8+
{[%clk 0:02:28.4]} 70... Kg7 {[%clk 0:00:18.2]} 71. Rd8 {[%clk 0:02:30.1]} 71...
Ra6+ {[%clk 0:00:17.7]} 72. Ke7 {[%clk 0:02:29.7]} 72... Ra2 {[%clk 0:00:14.2]}
73. e6 {[%clk 0:02:30.9]} 73... Ra6 {[%clk 0:00:11.7]} 74. Rd7 {[%clk
0:02:28.8]} 74... Ra8 {[%clk 0:00:10.7]} 75. Rd6 {[%clk 0:02:23.6]} 75... Rb8
{[%clk 0:00:10.8]} 76. Kd7 {[%clk 0:02:23.2]} 76... Rb7+ {[%clk 0:00:11]} 77.
Ke8 {[%clk 0:02:24.1]} 77... Rb8+ {[%clk 0:00:10.4]} 78. Rd8 {[%clk 0:02:24.6]}
78... Rb6 {[%clk 0:00:10]} 79. e7 {[%clk 0:02:23.9]} 79... Re6 {[%clk
0:00:08.4]} 80. Kd7 {[%clk 0:02:24]} 80... Rxe7+ {[%clk 0:00:08.4]} 81. Kxe7
{[%clk 0:02:24.9]} 1-0